[Event "Asian Amateur Rapid 2024"]
[Site "Al Ain"]
[Date "2024.12.15"]
[Round "1.26"]
[White "Vivaan Sachdev"]
[Black "Amirgali, Nurali"]
[Result "1-0"]
[ECO "B18"]
[WhiteElo "1824"]
[BlackElo "1572"]
[Annotator "NA"]
[PlyCount "83"]
[EventDate "2024.12.15"]
[EventType "swiss"]
[EventCountry "UAE"]
[SourceTitle "playchess.com"]
[Source "ChessBase"]
[SourceQuality "1"]
[TimeControl "900+10"]

1. e4 {[%emt 0:00:08]} c6 {[%emt 0:00:01]} 2. d4 {[%emt 0:00:03]} d5 {[%emt 0:00:01]} 3. Nc3 {[%emt 0:00:02]} dxe4 {[%emt 0:00:01]} 4. Nxe4 {[%emt 0:00:02]} Bf5 {[%emt 0:00:01]} 5. Ng3 {[%emt 0:00:02]} Bg6 {[%emt 0:00:02]} 6. Nh3 {[%emt 0:00:03]} e6 {[%emt 0:00:02]} 7. Nf4 {[%emt 0:00:12]} Nf6 {[%emt 0:00:32]} 8. h4 {[%emt 0:00:06]} h6 {[%emt 0:00:07]} 9. Nxg6 {[%emt 0:00:07]} fxg6 {[%emt 0:00:04]} 10. Bd3 {[%emt 0:00:18]} Kf7 {[%emt 0:01:20]} 11. h5 {[%emt 0:02:17]} g5 {[%emt 0:02:51]} 12. Qe2 {[%emt 0:00:32]} Qd7 {[%emt 0:01:01]} 13. Bg6+ {[%emt 0:01:35]} Ke7 {[%emt 0:01:16]} 14. Bd2 {[%emt 0:00:44]} Kd8 {[%emt 0:02:45]} 15. O-O-O {[%emt 0:00:13]} Bd6 {[%emt 0:00:48]} 16. Rhe1 {[%emt 0:02:27]} Kc7 {[%emt 0:01:33]} 17. Qxe6 {[%emt 0:00:23]} Qxe6 {[%emt 0:00:02]} 18. Rxe6 {[%emt 0:00:02]} Nbd7 {[%emt 0:00:23]} 19. Nf5 {[%emt 0:00:32]} Bf4 {[%emt 0:02:36]} 20. Bxf4+ {[%emt 0:00:13]} gxf4 {[%emt 0:00:05]} 21. Re7 {[%emt 0:01:37]} Rhg8 {[%emt 0:01:32]} 22. Rde1 {[%emt 0:00:48]} Nd5 {[%emt 0:00:22]} 23. Rxg7 {[%emt 0:00:03]} Rxg7 {[%emt 0:00:30]} 24. Nxg7 {[%emt 0:00:02]} Rg8 {[%emt 0:00:11]} 25. Ne6+ {[%emt 0:00:05]} Kd6 {[%emt 0:00:15]} 26. c4 {[%emt 0:00:23]} Nb4 {[%emt 0:00:38]} 27. c5+ {[%emt 0:01:17]} Kd5 {[%emt 0:00:13]} 28. Nxf4+ {[%emt 0:00:02]} Kxd4 {[%emt 0:00:07]} 29. Rd1+ {[%emt 0:00:08]} Ke5 {[%emt 0:00:01]} 30. Rxd7 {[%emt 0:00:03]} Kxf4 {[%emt 0:00:02]} 31. Rd4+ {[%emt 0:00:03]} Ke5 {[%emt 0:00:04]} 32. Rxb4 {[%emt 0:00:02]} Rd8 {[%emt 0:00:01]} 33. Rxb7 {[%emt 0:00:14]} Rd5 {[%emt 0:00:02]} 34. b4 {[%emt 0:00:07]} Rd4 {[%emt 0:00:04]} 35. a3 {[%emt 0:00:01]} Rc4+ {[%emt 0:00:02]} 36. Kb2 {[%emt 0:00:03]} Rg4 {[%emt 0:00:02]} 37. g3 {[%emt 0:00:02]} Rd4 {[%emt 0:00:03]} 38. Re7+ {[%emt 0:00:10]} Kf6 {[%emt 0:00:02]} 39. Rxa7 {[%emt 0:00:05]} Rd2+ {[%emt 0:00:03]} 40. Kc3 {[%emt 0:00:02]} Rd5 {[%emt 0:00:05]} 41. Rf7+ {[%emt 0:00:02]} Ke6 {[%emt 0:00:02]} 42. Rh7 {[%emt 0:00:04]} 1-0

[Event "Asian Amateur Rapid 2024"]
[Site "Al Ain"]
[Date "2024.12.15"]
[Round "1.28"]
[White "Ebenezer, Joseph"]
[Black "Godhani Maharth"]
[Result "1/2-1/2"]
[ECO "C58"]
[WhiteElo "1993"]
[BlackElo "1798"]
[Annotator "RC"]
[PlyCount "119"]
[EventDate "2024.12.15"]
[EventType "swiss"]
[EventCountry "UAE"]
[SourceTitle "playchess.com"]
[Source "ChessBase"]
[SourceQuality "1"]
[TimeControl "900+10"]

1. e4 {[%emt 0:00:04]} e5 {[%emt 0:00:02]} 2. Nf3 {[%emt 0:00:04]} Nc6 {[%emt 0:00:02]} 3. Bc4 {[%emt 0:00:02]} Nf6 {[%emt 0:00:01]} 4. Ng5 {[%emt 0:00:10]} d5 {[%emt 0:00:02]} 5. exd5 {[%emt 0:00:02]} Na5 {[%emt 0:00:02]} 6. Bb5+ {[%emt 0:00:01]} c6 {[%emt 0:00:03]} 7. dxc6 {[%emt 0:00:09]} bxc6 {[%emt 0:00:02]} 8. Bd3 {[%emt 0:00:11]} Ng4 {[%emt 0:00:42]} 9. Ne4 {[%emt 0:02:19]} f5 {[%emt 0:00:01]} 10. Be2 {[%emt 0:01:28]} h5 {[%emt 0:01:04]} 11. h3 {[%emt 0:01:12]} fxe4 {[%emt 0:00:02]} 12. hxg4 {[%emt 0:00:03]} Bc5 {[%emt 0:00:02]} 13. b4 {[%emt 0:05:47]} Bxb4 {[%emt 0:03:13]} 14. c3 {[%emt 0:01:07]} Bc5 {[%emt 0:00:01]} 15. gxh5 {[%emt 0:01:50]} Be6 {[%emt 0:01:46]} 16. Ba3 {[%emt 0:00:13]} Bxa3 {[%emt 0:00:20]} 17. Nxa3 {[%emt 0:00:01]} Qd6 {[%emt 0:00:19]} 18. Qa4 {[%emt 0:00:10]} Nb7 {[%emt 0:00:02]} 19. Nc4 {[%emt 0:00:11]} Bxc4 {[%emt 0:01:09]} 20. Qxc4 {[%emt 0:00:18]} Nc5 {[%emt 0:00:09]} 21. Rh3 {[%emt 0:00:31]} Rd8 {[%emt 0:00:10]} 22. Rd1 {[%emt 0:00:19]} Ne6 {[%emt 0:00:34]} 23. Re3 {[%emt 0:00:36]} Ng5 {[%emt 0:00:59]} 24. d3 {[%emt 0:00:16]} Qf6 {[%emt 0:00:25]} 25. dxe4 {[%emt 0:00:13]} Rf8 {[%emt 0:00:12]} 26. Bf3 {[%emt 0:00:25]} Rxd1+ {[%emt 0:00:36]} 27. Kxd1 {[%emt 0:00:02]} Rf7 {[%emt 0:00:13]} 28. Kc2 {[%emt 0:00:15]} Rd7 {[%emt 0:00:12]} 29. Qg8+ {[%emt 0:00:06]} Ke7 {[%emt 0:00:03]} 30. Bg4 {[%emt 0:00:46]} Rd8 {[%emt 0:00:10]} 31. Qc4 {[%emt 0:00:08]} Qxf2+ {[%emt 0:00:05]} 32. Re2 {[%emt 0:00:04]} Qg1 {[%emt 0:00:50]} 33. Qb4+ {[%emt 0:00:22]} Ke8 {[%emt 0:00:01]} 34. Qb1 {[%emt 0:00:11]} Qc5 {[%emt 0:00:15]} 35. Qb3 {[%emt 0:00:11]} Qd6 {[%emt 0:01:26]} 36. Qg8+ {[%emt 0:00:08]} Ke7 {[%emt 0:00:02]} 37. Qb3 {[%emt 0:01:00]} Qd1+ {[%emt 0:02:02]} 38. Kb2 {[%emt 0:00:01]} Rd2+ {[%emt 0:00:02]} 39. Rxd2 {[%emt 0:00:03]} Qxd2+ {[%emt 0:00:01]} 40. Qc2 {[%emt 0:00:03]} Qxc2+ {[%emt 0:00:06]} 41. Kxc2 {[%emt 0:00:00]} Nxe4 {[%emt 0:00:01]} 42. Bf3 {[%emt 0:00:01]} Nf6 {[%emt 0:00:02]} 43. Bxc6 {[%emt 0:00:07]} Nxh5 {[%emt 0:00:01]} 44. Kd3 {[%emt 0:00:05]} Kd6 {[%emt 0:00:01]} 45. Be4 {[%emt 0:00:05]} Kc5 {[%emt 0:00:03]} 46. Bf3 {[%emt 0:00:09]} Nf6 {[%emt 0:00:02]} 47. g4 {[%emt 0:00:29]} g5 {[%emt 0:00:02]} 48. Be2 {[%emt 0:00:03]} e4+ {[%emt 0:00:20]} 49. Ke3 {[%emt 0:00:04]} Kd5 {[%emt 0:00:02]} 50. c4+ {[%emt 0:00:09]} Ke5 {[%emt 0:00:02]} 51. Bd1 {[%emt 0:00:14]} Nd7 {[%emt 0:00:12]} 52. Bc2 {[%emt 0:00:08]} Nf6 {[%emt 0:00:05]} 53. Bd1 {[%emt 0:00:06]} Nd7 {[%emt 0:00:03]} 54. Bc2 {[%emt 0:00:30]} Nf6 {[%emt 0:00:47]} 55. Bd1 {[%emt 0:00:11]} Nd7 {[%emt 0:00:07]} 56. Be2 {[%emt 0:00:37]} Nb6 {[%emt 0:00:49]} 57. Bf1 {[%emt 0:00:15]} Nd7 {[%emt 0:00:06]} 58. Be2 {[%emt 0:00:07]} Nb6 {[%emt 0:00:03]} 59. a3 {[%emt 0:00:09]} a5 {[%emt 0:00:11]} 60. Bf1 {[%emt 0:00:12]} 1/2-1/2

[Event "Asian Amateur Rapid 2024"]
[Site "Al Ain"]
[Date "2024.12.15"]
[Round "1.30"]
[White "Rashid Husain Alhammadi"]
[Black "Al Sabti, Wadhah"]
[Result "1-0"]
[ECO "C74"]
[WhiteElo "1914"]
[BlackElo "1470"]
[Annotator "RC"]
[PlyCount "67"]
[EventDate "2024.12.15"]
[EventType "swiss"]
[EventCountry "UAE"]
[SourceTitle "playchess.com"]
[Source "ChessBase"]
[SourceQuality "1"]
[TimeControl "900+10"]

1. e4 {[%emt 0:00:01]} e5 {[%emt 0:00:01]} 2. Nf3 {[%emt 0:00:01]} Nc6 {[%emt 0:00:01]} 3. Bb5 {[%emt 0:00:01]} a6 {[%emt 0:00:01]} 4. Ba4 {[%emt 0:00:01]} d6 {[%emt 0:00:15]} 5. c3 {[%emt 0:00:01]} f5 {[%emt 0:00:23]} 6. exf5 {[%emt 0:00:17]} Bxf5 {[%emt 0:00:03]} 7. O-O {[%emt 0:00:01]} Nf6 {[%emt 0:00:28]} 8. d4 {[%emt 0:00:11]} b5 {[%emt 0:00:10]} 9. Bb3 {[%emt 0:00:04]} e4 {[%emt 0:01:07]} 10. Re1 {[%emt 0:01:00]} d5 {[%emt 0:00:39]} 11. Ne5 {[%emt 0:00:04]} Qd6 {[%emt 0:01:27]} 12. Bf4 {[%emt 0:00:09]} Qe6 {[%emt 0:00:58]} 13. a4 {[%emt 0:00:10]} Rb8 {[%emt 0:01:52]} 14. axb5 {[%emt 0:00:09]} axb5 {[%emt 0:00:02]} 15. Ra6 {[%emt 0:00:17]} Rb6 {[%emt 0:00:26]} 16. Rxb6 {[%emt 0:00:23]} cxb6 {[%emt 0:00:04]} 17. Qe2 {[%emt 0:00:06]} Nxe5 {[%emt 0:03:02]} 18. dxe5 {[%emt 0:06:31]} Nd7 {[%emt 0:00:46]} 19. Qxb5 {[%emt 0:00:03]} Bc5 {[%emt 0:00:34]} 20. Rd1 {[%emt 0:00:43]} e3 {[%emt 0:01:54]} 21. fxe3 {[%emt 0:00:52]} Be4 {[%emt 0:00:47]} 22. Nd2 {[%emt 0:01:08]} Qg4 {[%emt 0:00:09]} 23. Nxe4 {[%emt 0:00:05]} dxe4 {[%emt 0:00:13]} 24. e6 {[%emt 0:00:17]} O-O {[%emt 0:00:30]} 25. exd7+ {[%emt 0:00:15]} Kh8 {[%emt 0:00:04]} 26. d8=Q {[%emt 0:00:48]} Qxf4 {[%emt 0:00:09]} 27. Qxf8+ {[%emt 0:00:03]} Qxf8 {[%emt 0:00:04]} 28. Rf1 {[%emt 0:00:15]} Bxe3+ {[%emt 0:00:05]} 29. Kh1 {[%emt 0:00:02]} Qd8 {[%emt 0:00:22]} 30. Qd7 {[%emt 0:00:05]} Qb8 {[%emt 0:00:27]} 31. Qe7 {[%emt 0:00:06]} Bc5 {[%emt 0:00:14]} 32. Qxe4 {[%emt 0:00:02]} h6 {[%emt 0:00:22]} 33. Bc2 {[%emt 0:00:01]} Qd8 {[%emt 0:00:20]} 34. Qh7# {[%emt 0:00:00]} 1-0

[Event "Asian Amateur Rapid 2024"]
[Site "Al Ain"]
[Date "2024.12.15"]
[Round "1.32"]
[White "Hamdan Edrees, Alhamed"]
[Black "Alajati, Abdl Alrahman."]
[Result "1-0"]
[ECO "E62"]
[WhiteElo "1939"]
[BlackElo "1555"]
[Annotator "RC"]
[PlyCount "81"]
[EventDate "2024.12.15"]
[EventType "swiss"]
[EventCountry "UAE"]
[SourceTitle "playchess.com"]
[Source "ChessBase"]
[SourceQuality "1"]
[TimeControl "900+10"]

1. Nf3 {[%emt 0:00:02]} Nf6 {[%emt 0:00:03]} 2. g3 {[%emt 0:00:07]} g6 {[%emt 0:00:07]} 3. Bg2 {[%emt 0:00:02]} Bg7 {[%emt 0:00:02]} 4. O-O {[%emt 0:00:02]} O-O {[%emt 0:00:02]} 5. d4 {[%emt 0:00:01]} d6 {[%emt 0:00:43]} 6. c4 {[%emt 0:00:03]} Bg4 {[%emt 0:01:37]} 7. Nc3 {[%emt 0:00:18]} c6 {[%emt 0:00:04]} 8. b3 {[%emt 0:00:27]} Qd7 {[%emt 0:00:50]} 9. Re1 {[%emt 0:00:05]} Na6 {[%emt 0:00:30]} 10. Bb2 {[%emt 0:00:03]} Rae8 {[%emt 0:00:42]} 11. a3 {[%emt 0:01:27]} e5 {[%emt 0:00:50]} 12. dxe5 {[%emt 0:00:03]} dxe5 {[%emt 0:00:14]} 13. Qxd7 {[%emt 0:00:02]} Nxd7 {[%emt 0:00:14]} 14. Ne4 {[%emt 0:00:03]} Nac5 {[%emt 0:00:41]} 15. Nfd2 {[%emt 0:00:04]} f5 {[%emt 0:00:29]} 16. Nxc5 {[%emt 0:00:17]} Nxc5 {[%emt 0:00:07]} 17. h3 {[%emt 0:00:21]} Bh5 {[%emt 0:00:03]} 18. Bc3 {[%emt 0:01:08]} g5 {[%emt 0:00:44]} 19. a4 {[%emt 0:00:32]} e4 {[%emt 0:01:07]} 20. Bxg7 {[%emt 0:00:04]} Kxg7 {[%emt 0:00:02]} 21. b4 {[%emt 0:00:01]} Na6 {[%emt 0:00:21]} 22. Rab1 {[%emt 0:00:10]} Bg6 {[%emt 0:01:07]} 23. e3 {[%emt 0:00:18]} f4 {[%emt 0:00:23]} 24. Rb2 {[%emt 0:00:55]} f3 {[%emt 0:00:24]} 25. Bf1 {[%emt 0:00:05]} c5 {[%emt 0:00:42]} 26. bxc5 {[%emt 0:01:20]} Nxc5 {[%emt 0:00:05]} 27. a5 {[%emt 0:00:02]} Rd8 {[%emt 0:01:22]} 28. Reb1 {[%emt 0:00:32]} Rd7 {[%emt 0:00:48]} 29. Rb5 {[%emt 0:00:06]} b6 {[%emt 0:01:49]} 30. axb6 {[%emt 0:00:03]} Na4 {[%emt 0:00:26]} 31. bxa7 {[%emt 0:00:42]} Nc3 {[%emt 0:01:24]} 32. Rb7 {[%emt 0:00:11]} Ne2+ {[%emt 0:01:08]} 33. Bxe2 {[%emt 0:00:26]} Rfd8 {[%emt 0:00:13]} 34. Rxd7+ {[%emt 0:00:26]} Rxd7 {[%emt 0:00:01]} 35. a8=Q {[%emt 0:00:05]} fxe2 {[%emt 0:00:15]} 36. Qa1+ {[%emt 0:00:04]} Kh6 {[%emt 0:00:05]} 37. Qc3 {[%emt 0:00:02]} Rd3 {[%emt 0:00:16]} 38. Qc2 {[%emt 0:00:04]} Bf7 {[%emt 0:00:13]} 39. c5 {[%emt 0:00:04]} Bd5 {[%emt 0:00:17]} 40. Re1 {[%emt 0:00:17]} Bc6 {[%emt 0:00:15]} 41. Rxe2 {[%emt 0:00:02]} 1-0

[Event "Asian Amateur Rapid 2024"]
[Site "Al Ain"]
[Date "2024.12.15"]
[Round "1.33"]
[White "Sharfa, Farukh"]
[Black "Al Hosni, Khalfan"]
[Result "0-1"]
[ECO "B23"]
[WhiteElo "1536"]
[BlackElo "1749"]
[Annotator "NA"]
[PlyCount "92"]
[EventDate "2024.12.15"]
[EventType "swiss"]
[EventCountry "UAE"]
[SourceTitle "playchess.com"]
[Source "ChessBase"]
[SourceQuality "1"]
[TimeControl "900+10"]

1. e4 {[%emt 0:00:07]} c5 {[%emt 0:00:01]} 2. Nc3 {[%emt 0:00:05]} Nc6 {[%emt 0:00:02]} 3. Bb5 {[%emt 0:00:02]} g6 {[%emt 0:00:02]} 4. Bxc6 {[%emt 0:00:02]} bxc6 {[%emt 0:00:02]} 5. d3 {[%emt 0:00:01]} Bg7 {[%emt 0:00:17]} 6. Bd2 {[%emt 0:00:26]} Rb8 {[%emt 0:00:09]} 7. Rb1 {[%emt 0:00:23]} e6 {[%emt 0:00:14]} 8. Nf3 {[%emt 0:00:49]} Ne7 {[%emt 0:00:07]} 9. Qe2 {[%emt 0:01:26]} Ba6 {[%emt 0:00:14]} 10. O-O {[%emt 0:00:19]} d5 {[%emt 0:00:10]} 11. Rfe1 {[%emt 0:00:56]} O-O {[%emt 0:00:05]} 12. h3 {[%emt 0:00:35]} h6 {[%emt 0:00:03]} 13. Nh2 {[%emt 0:00:15]} Kh7 {[%emt 0:00:09]} 14. f4 {[%emt 0:00:05]} c4 {[%emt 0:00:39]} 15. Nf3 {[%emt 0:00:32]} cxd3 {[%emt 0:00:19]} 16. cxd3 {[%emt 0:00:06]} dxe4 {[%emt 0:00:14]} 17. Qxe4 {[%emt 0:02:23]} Bxd3 {[%emt 0:00:06]} 18. Qa4 {[%emt 0:00:22]} Bxb1 {[%emt 0:00:50]} 19. Rxb1 {[%emt 0:00:07]} Qd3 {[%emt 0:00:31]} 20. Rd1 {[%emt 0:02:40]} Qf5 {[%emt 0:01:59]} 21. Qxa7 {[%emt 0:01:32]} Nd5 {[%emt 0:00:21]} 22. Qa3 {[%emt 0:01:00]} Nxf4 {[%emt 0:00:45]} 23. Bxf4 {[%emt 0:00:27]} Qxf4 {[%emt 0:00:08]} 24. Rf1 {[%emt 0:01:08]} Rfd8 {[%emt 0:00:41]} 25. h4 {[%emt 0:00:02]} Qb4 {[%emt 0:01:02]} 26. Qxb4 {[%emt 0:00:08]} Rxb4 {[%emt 0:00:02]} 27. Rf2 {[%emt 0:00:07]} Rdb8 {[%emt 0:00:04]} 28. Nd1 {[%emt 0:00:30]} Ra8 {[%emt 0:00:17]} 29. a3 {[%emt 0:00:04]} Rb3 {[%emt 0:00:07]} 30. Nd2 {[%emt 0:00:06]} Rd3 {[%emt 0:00:12]} 31. Kf1 {[%emt 0:00:01]} Rad8 {[%emt 0:00:16]} 32. Ke1 {[%emt 0:00:01]} Kg8 {[%emt 0:00:13]} 33. Re2 {[%emt 0:00:41]} Bf6 {[%emt 0:00:26]} 34. h5 {[%emt 0:00:39]} Bh4+ {[%emt 0:00:06]} 35. Nf2 {[%emt 0:00:14]} Kg7 {[%emt 0:01:09]} 36. hxg6 {[%emt 0:00:17]} Kxg6 {[%emt 0:00:11]} 37. Kd1 {[%emt 0:00:50]} Bxf2 {[%emt 0:00:06]} 38. Rxf2 {[%emt 0:00:00]} e5 {[%emt 0:00:21]} 39. Kc2 {[%emt 0:00:01]} f5 {[%emt 0:00:37]} 40. Nf3 {[%emt 0:00:27]} Kf6 {[%emt 0:00:41]} 41. Re2 {[%emt 0:01:07]} e4 {[%emt 0:00:09]} 42. Ne1 {[%emt 0:00:02]} Rd1 {[%emt 0:00:21]} 43. b3 {[%emt 0:00:04]} Ra1 {[%emt 0:00:09]} 44. Kc3 {[%emt 0:00:20]} Rxa3 {[%emt 0:00:25]} 45. Nc2 {[%emt 0:00:06]} Rd3+ {[%emt 0:00:15]} 46. Kc4 {[%emt 0:00:24]} Raxb3 {[%emt 0:00:03]} 0-1

[Event "Asian Amateur Rapid 2024"]
[Site "Al Ain"]
[Date "2024.12.15"]
[Round "1.35"]
[White "Mohammed Saeed Alshamsi"]
[Black "Mosallam, Mohammad"]
[Result "1-0"]
[ECO "B09"]
[WhiteElo "1535"]
[BlackElo "1753"]
[Annotator "NA"]
[PlyCount "65"]
[EventDate "2024.12.15"]
[EventType "swiss"]
[EventCountry "UAE"]
[SourceTitle "playchess.com"]
[Source "ChessBase"]
[SourceQuality "1"]
[TimeControl "900+10"]

1. e4 {[%emt 0:00:04]} d6 {[%emt 0:00:16]} 2. d4 {[%emt 0:00:05]} Nf6 {[%emt 0:00:02]} 3. Nc3 {[%emt 0:00:03]} g6 {[%emt 0:00:01]} 4. f4 {[%emt 0:00:02]} Bg7 {[%emt 0:00:02]} 5. Nf3 {[%emt 0:00:02]} Nc6 {[%emt 0:00:12]} 6. Bd3 {[%emt 0:00:53]} O-O {[%emt 0:00:04]} 7. O-O {[%emt 0:00:22]} h6 {[%emt 0:00:18]} 8. h3 {[%emt 0:01:52]} Nb4 {[%emt 0:01:25]} 9. Bc4 {[%emt 0:00:31]} Nxe4 {[%emt 0:01:09]} 10. Nxe4 {[%emt 0:02:42]} d5 {[%emt 0:00:03]} 11. Bb3 {[%emt 0:01:16]} dxe4 {[%emt 0:00:12]} 12. Ne5 {[%emt 0:00:03]} Nd5 {[%emt 0:02:35]} 13. Qe2 {[%emt 0:01:15]} c6 {[%emt 0:05:17]} 14. Qxe4 {[%emt 0:01:04]} Bf5 {[%emt 0:00:01]} 15. Qe2 {[%emt 0:00:01]} Qb6 {[%emt 0:01:17]} 16. c3 {[%emt 0:00:34]} Rad8 {[%emt 0:00:06]} 17. Kh1 {[%emt 0:03:22]} f6 {[%emt 0:02:31]} 18. Nd3 {[%emt 0:00:09]} Bxd3 {[%emt 0:00:41]} 19. Qxd3 {[%emt 0:00:05]} Kh7 {[%emt 0:00:06]} 20. f5 {[%emt 0:00:12]} g5 {[%emt 0:00:01]} 21. h4 {[%emt 0:00:17]} g4 {[%emt 0:00:41]} 22. Qe4 {[%emt 0:00:24]} h5 {[%emt 0:00:06]} 23. Bxd5 {[%emt 0:02:00]} cxd5 {[%emt 0:00:06]} 24. Qxe7 {[%emt 0:00:17]} Rfe8 {[%emt 0:00:06]} 25. Qf7 {[%emt 0:00:06]} Re2 {[%emt 0:00:53]} 26. Bh6 {[%emt 0:00:30]} Rg8 {[%emt 0:00:16]} 27. Qg6+ {[%emt 0:00:03]} Kh8 {[%emt 0:00:01]} 28. Qxh5 {[%emt 0:00:19]} Re7 {[%emt 0:00:25]} 29. Bg5+ {[%emt 0:00:08]} Bh6 {[%emt 0:00:36]} 30. Qxh6+ {[%emt 0:00:02]} Rh7 {[%emt 0:00:01]} 31. Bxf6+ {[%emt 0:00:02]} Rgg7 {[%emt 0:00:02]} 32. Bxg7+ {[%emt 0:00:02]} Kg8 {[%emt 0:00:00]} 33. Qxb6 {[%emt 0:00:02]} 1-0

[Event "Asian Amateur Rapid 2024"]
[Site "Al Ain"]
[Date "2024.12.15"]
[Round "1.36"]
[White "Al Mamari, Said Ahmed"]
[Black "Sultan Ahmed AlMheiri"]
[Result "1-0"]
[ECO "C47"]
[WhiteElo "1707"]
[BlackElo "1569"]
[Annotator "NA"]
[PlyCount "75"]
[EventDate "2024.12.15"]
[EventType "swiss"]
[EventCountry "UAE"]
[SourceTitle "playchess.com"]
[Source "ChessBase"]
[SourceQuality "1"]
[TimeControl "900+10"]

1. e4 {[%emt 0:00:01]} e5 {[%emt 0:00:01]} 2. Nf3 {[%emt 0:00:02]} Nc6 {[%emt 0:00:01]} 3. Nc3 {[%emt 0:00:01]} Nf6 {[%emt 0:00:01]} 4. a3 {[%emt 0:00:01]} d6 {[%emt 0:00:09]} 5. d4 {[%emt 0:00:03]} exd4 {[%emt 0:00:05]} 6. Nxd4 {[%emt 0:00:02]} Be7 {[%emt 0:00:03]} 7. h3 {[%emt 0:00:05]} O-O {[%emt 0:00:06]} 8. Nxc6 {[%emt 0:00:07]} bxc6 {[%emt 0:00:02]} 9. Bc4 {[%emt 0:00:04]} Re8 {[%emt 0:00:34]} 10. O-O {[%emt 0:00:03]} Bf8 {[%emt 0:00:03]} 11. Bg5 {[%emt 0:00:08]} h6 {[%emt 0:00:16]} 12. Bh4 {[%emt 0:00:03]} g5 {[%emt 0:00:25]} 13. Bg3 {[%emt 0:00:05]} Nxe4 {[%emt 0:00:18]} 14. Qh5 {[%emt 0:02:50]} d5 {[%emt 0:02:48]} 15. Nxe4 {[%emt 0:00:14]} Rxe4 {[%emt 0:00:24]} 16. Bd3 {[%emt 0:00:09]} Re8 {[%emt 0:00:52]} 17. f4 {[%emt 0:00:32]} Be6 {[%emt 0:02:08]} 18. Rae1 {[%emt 0:00:31]} Re7 {[%emt 0:02:19]} 19. fxg5 {[%emt 0:00:15]} Rd7 {[%emt 0:03:00]} 20. Rxe6 {[%emt 0:01:25]} fxe6 {[%emt 0:00:38]} 21. Qg6+ {[%emt 0:00:05]} Rg7 {[%emt 0:03:26]} 22. Qxe6+ {[%emt 0:00:09]} Kh8 {[%emt 0:00:02]} 23. Qxh6+ {[%emt 0:00:07]} Kg8 {[%emt 0:00:06]} 24. Qe6+ {[%emt 0:00:27]} Kh8 {[%emt 0:00:06]} 25. Be5 {[%emt 0:02:24]} Qxg5 {[%emt 0:00:26]} 26. Bxg7+ {[%emt 0:00:12]} Bxg7 {[%emt 0:00:22]} 27. Rf5 {[%emt 0:01:08]} Qh6 {[%emt 0:00:42]} 28. Qe2 {[%emt 0:00:56]} Qd6 {[%emt 0:00:13]} 29. Rh5+ {[%emt 0:01:02]} Kg8 {[%emt 0:00:01]} 30. Bh7+ {[%emt 0:00:02]} Kf7 {[%emt 0:00:08]} 31. Rf5+ {[%emt 0:00:08]} Bf6 {[%emt 0:00:16]} 32. Qh5+ {[%emt 0:01:24]} Ke7 {[%emt 0:00:15]} 33. Rf1 {[%emt 0:00:08]} Qc5+ {[%emt 0:00:04]} 34. Kh1 {[%emt 0:00:03]} Rf8 {[%emt 0:00:02]} 35. Qf5 {[%emt 0:00:24]} Bg7 {[%emt 0:00:26]} 36. Re1+ {[%emt 0:00:05]} Kd8 {[%emt 0:00:05]} 37. Qe6 {[%emt 0:00:31]} Bf6 {[%emt 0:00:11]} 38. Bf5 {[%emt 0:00:08]} 1-0

[Event "Asian Amateur Rapid 2024"]
[Site "Al Ain"]
[Date "2024.12.15"]
[Round "1.39"]
[White "Amirgali, Zhanali"]
[Black "Gong, Bonuonuo"]
[Result "0-1"]
[ECO "B08"]
[WhiteElo "1497"]
[BlackElo "1685"]
[Annotator "NA"]
[PlyCount "72"]
[EventDate "2024.12.15"]
[EventType "swiss"]
[EventCountry "UAE"]
[SourceTitle "playchess.com"]
[Source "ChessBase"]
[SourceQuality "1"]
[TimeControl "900+10"]

1. e4 {[%emt 0:00:01]} d6 {[%emt 0:00:01]} 2. d4 {[%emt 0:00:03]} Nf6 {[%emt 0:00:02]} 3. Nc3 {[%emt 0:00:02]} g6 {[%emt 0:00:05]} 4. Nf3 {[%emt 0:00:06]} Bg7 {[%emt 0:00:01]} 5. Bf4 {[%emt 0:00:07]} O-O {[%emt 0:00:07]} 6. Bc4 {[%emt 0:00:06]} c6 {[%emt 0:00:02]} 7. a4 {[%emt 0:00:05]} Nxe4 {[%emt 0:00:16]} 8. Nxe4 {[%emt 0:00:03]} d5 {[%emt 0:00:01]} 9. Bxd5 {[%emt 0:00:18]} cxd5 {[%emt 0:00:28]} 10. Nc3 {[%emt 0:00:14]} a6 {[%emt 0:00:23]} 11. O-O {[%emt 0:00:18]} Nc6 {[%emt 0:00:01]} 12. h3 {[%emt 0:00:15]} Bf5 {[%emt 0:01:54]} 13. Re1 {[%emt 0:00:24]} Nb4 {[%emt 0:00:33]} 14. Re2 {[%emt 0:00:40]} Rc8 {[%emt 0:00:30]} 15. Rc1 {[%emt 0:01:52]} Rxc3 {[%emt 0:00:44]} 16. bxc3 {[%emt 0:00:15]} Na2 {[%emt 0:00:02]} 17. Ra1 {[%emt 0:00:24]} Nxc3 {[%emt 0:00:02]} 18. Qd2 {[%emt 0:00:15]} Nxe2+ {[%emt 0:00:02]} 19. Qxe2 {[%emt 0:00:02]} Be4 {[%emt 0:00:56]} 20. Ng5 {[%emt 0:00:54]} Bxd4 {[%emt 0:04:54]} 21. Nxe4 {[%emt 0:12:16]} Bxa1 {[%emt 0:00:12]} 22. Nd2 {[%emt 0:00:00]} Bf6 {[%emt 0:07:34]} 23. Bh6 {[%emt 0:00:00]} Re8 {[%emt 0:00:00]} 24. g4 {[%emt 0:00:00]} e5 {[%emt 0:00:00]} 25. g5 {[%emt 0:00:00]} Bxg5 {[%emt 0:00:00]} 26. Bxg5 {[%emt 0:00:00]} Qxg5+ {[%emt 0:00:00]} 27. Kf1 {[%emt 0:00:00]} Qh4 {[%emt 0:00:00]} 28. Qd3 {[%emt 0:00:00]} Qxa4 {[%emt 0:00:00]} 29. Qxd5 {[%emt 0:00:00]} Qb5+ {[%emt 0:00:00]} 30. Qxb5 {[%emt 0:00:00]} axb5 {[%emt 0:00:00]} 31. Ke2 {[%emt 0:00:00]} Rc8 {[%emt 0:00:00]} 32. Kd3 {[%emt 0:00:00]} f5 {[%emt 0:00:00]} 33. f3 {[%emt 0:00:00]} Kf7 {[%emt 0:00:00]} 34. Ke3 {[%emt 0:00:00]} Rxc2 {[%emt 0:00:00]} 35. Nf1 {[%emt 0:00:00]} Ke6 {[%emt 0:00:00]} 36. Ng3 {[%emt 0:00:00]} f4+ {[%emt 0:02:20]} 0-1